[Event "EIWCC 2018"]
[Site "Vysoke Tatry"]
[Date "2018.04.08"]
[Round "1"]
[White "Richterova, Natasa"]
[Black "Hoolt, Sarah"]
[Result "0-1"]
[ECO "A46"]
[WhiteElo "2181"]
[BlackElo "2393"]
[Annotator "NA RC"]
[PlyCount "74"]
[EventDate "2018.??.??"]
[EventType "swiss"]
[EventCountry "SVK"]
[SourceTitle "playchess.com"]
[Source "ChessBase"]
[SourceQuality "1"]
[TimeControl "40/5400+30:1800+30"]

1. d4 {[%emt 0:00:00]} Nf6 {[%emt 0:00:08]} 2. Nf3 {[%emt 0:00:55]} e6 {[%emt 0:02:31]} 3. g3 {[%emt 0:00:31]} c5 {[%emt 0:01:35]} 4. Bg2 {[%emt 0:00:40]} Nc6 {[%emt 0:02:44]} 5. O-O {[%emt 0:01:20]} d5 {[%emt 0:03:29]} 6. c4 {[%emt 0:12:32]} cxd4 {[%emt 0:05:51]} 7. cxd5 {[%emt 0:01:55]} Nxd5 {[%emt 0:06:08]} 8. Nxd4 {[%emt 0:00:18]} Be7 {[%emt 0:01:49]} 9. Nxc6 {[%emt 0:02:10]} bxc6 {[%emt 0:00:04]} 10. e4 {[%emt 0:01:49]} Nb4 {[%emt 0:14:02]} 11. Qxd8+ {[%emt 0:10:17]} Bxd8 {[%emt 0:00:47]} 12. Nc3 {[%emt 0:15:25]} e5 {[%emt 0:12:17]} 13. Rd1 {[%emt 0:03:04]} Bg4 {[%emt 0:05:59]} 14. f3 {[%emt 0:02:05]} ({White should play} 14. Rd2 $11) 14... Bb6+ {[%emt 0:00:19]} 15. Kh1 {[%emt 0:00:44]} Be6 {[%emt 0:05:04]} 16. a3 $17 {[%emt 0:10:13]} (16. Bf1 $15) 16... Nc2 {[%emt 0:01:04]} 17. Rb1 {[%emt 0:00:14]} Bb3 {[%emt 0:01:48]} 18. f4 {[%emt 0:16:39]} f6 {[%emt 0:02:12]} 19. fxe5 {[%emt 0:09:05]} fxe5 {[%emt 0:00:02]} 20. Bh3 {[%emt 0:01:32]} Nd4 {[%emt 0:06:03]} 21. Rf1 {[%emt 0:01:42]} Bc2 {[%emt 0:00:41]} 22. Ra1 {[%emt 0:00:22]} Nb3 {[%emt 0:00:17]} 23. Ra2 Rf8 {[%emt 0:03:58]} 24. Bf5 {[%emt 0:04:11]} g6 {[%emt 0:04:34]} 25. Bh6 {[%emt 0:00:05]} gxf5 {[%emt 0:00:18]} 26. Bxf8 {[%emt 0:00:14]} Kxf8 {[%emt 0:00:07]} 27. Rxf5+ {[%emt 0:00:03]} Kg8 {[%emt 0:01:12]} 28. Rxe5 {[%emt 0:00:53]} Rf8 {[%emt 0:03:47]} 29. Kg2 {[%emt 0:04:52]} Bd3 {[%emt 0:02:14]} 30. Rg5+ {[%emt 0:00:37]} Kh8 {[%emt 0:00:14]} 31. g4 {[%emt 0:00:28]} Bf1+ {[%emt 0:01:14]} 32. Kh1 {[%emt 0:00:11]} Rf2 {[%emt 0:00:22]} 33. h4 {[%emt 0:00:40]} Bg2+ {[%emt 0:01:01]} 34. Kh2 {[%emt 0:00:08]} Bxe4+ {[%emt 0:00:43]} 35. Kg3 {[%emt 0:00:09]} Rf3+ {[%emt 0:03:15]} 36. Kh2 {[%emt 0:00:21]} Bd3 {[%emt 0:00:21]} 37. a4 {[%emt 0:01:15]} Bf1 {[%emt 0:00:24]} 0-1

[Event "EIWCC 2018"]
[Site "Vysoke Tatry"]
[Date "2018.04.08"]
[Round "1"]
[White "Petrenko, Svetlana"]
[Black "Milliet, Sophie"]
[Result "1/2-1/2"]
[ECO "A21"]
[WhiteElo "2178"]
[BlackElo "2391"]
[Annotator "NA RC"]
[PlyCount "95"]
[EventDate "2018.??.??"]
[EventType "swiss"]
[EventCountry "SVK"]
[SourceTitle "playchess.com"]
[Source "ChessBase"]
[SourceQuality "1"]
[TimeControl "40/5400+30:1800+30"]

1. c4 {[%emt 0:00:00]} e5 {[%emt 0:00:19]} 2. Nc3 {[%emt 0:00:00]} d6 {[%emt 0:00:18]} 3. g3 {[%emt 0:00:41]} f5 {[%emt 0:00:12]} 4. Bg2 {[%emt 0:00:21]} Nf6 {[%emt 0:00:16]} 5. d3 {[%emt 0:02:12]} Be7 {[%emt 0:00:53]} 6. Nf3 {[%emt 0:04:11]} O-O {[%emt 0:02:28]} 7. O-O {[%emt 0:00:27]} c6 {[%emt 0:10:24]} 8. e4 {[%emt 0:03:28] A21: English Opening: 1...e5 2 Nc3} (8. Rb1 Na6 9. b4 Nc7 10. a4 a6 11. a5 Kh8 12. Na4 Be6 13. Nb6 Rb8 14. Bb2 f4 15. Qc2 Qe8 16. c5 Qh5 17. cxd6 Bxd6 {0-1 (58) Pantsulaia,L (2612)-Adhiban,B (2655) Riadh 2017}) 8... Kh8 $146 {[%emt 0:12:41]} ({Predecessor:} 8... Qe8 9. d4 fxe4 10. Ng5 exd4 11. Qxd4 c5 12. Qd1 Nc6 13. Ngxe4 Nd4 14. Be3 Nf5 15. Bf4 Be6 {0-1 (41) Klink,T (2134)-Rigo,J (2314) Dortmund 2004}) 9. Nh4 {[%emt 0:12:26]} fxe4 {[%emt 0:04:11]} 10. dxe4 {[%emt 0:00:12]} Bg4 {[%emt 0:00:10]} 11. Qc2 {[%emt 0:05:45]} Qd7 {[%emt 0:17:52]} 12. f4 {[%emt 0:14:51]} exf4 {[%emt 0:05:18]} 13. Bxf4 {[%emt 0:00:59]} Qe6 {[%emt 0:00:38]} 14. b3 {[%emt 0:02:53]} Nbd7 {[%emt 0:00:31]} 15. Nf5 {[%emt 0:05:25]} Ne5 {[%emt 0:01:01]} 16. h3 {[%emt 0:11:22]} Bh5 {[%emt 0:00:05]} 17. g4 {[%emt 0:01:04]} Bg6 {[%emt 0:00:39]} 18. Rad1 {[%emt 0:07:01]} h5 {[%emt 0:06:21]} 19. Nxe7 {[%emt 0:06:46]} Qxe7 {[%emt 0:00:03]} 20. g5 $14 {[%emt 0:00:14]} Nh7 {[%emt 0:18:16]} 21. Qd2 {[%emt 0:00:07]} Rad8 {[%emt 0:00:11]} 22. Qe3 {[%emt 0:03:16]} Rfe8 {[%emt 0:04:53]} 23. h4 a6 {[%emt 0:01:40]} 24. Qg3 {[%emt 0:02:56]} Nf8 {[%emt 0:00:29]} 25. c5 {[%emt 0:00:53]} Kg8 {[%emt 0:06:50]} 26. Bh3 {[%emt 0:05:49]} Bf7 {[%emt 0:00:07]} 27. Rxd6 {[%emt 0:03:10]} Rxd6 {[%emt 0:01:14]} 28. Bxe5 {[%emt 0:00:55]} Rd3 {[%emt 0:03:32]} 29. Qxd3 {[%emt 0:00:09]} Qxe5 {[%emt 0:00:06]} 30. b4 {[%emt 0:01:47]} Be6 {[%emt 0:01:35]} 31. Bxe6+ {[%emt 0:01:11]} Qxe6 {[%emt 0:00:04]} 32. Qf3 {[%emt 0:01:35]} Ng6 {[%emt 0:00:08]} 33. Qxh5 {[%emt 0:00:54]} Qe5 {[%emt 0:00:15]} 34. Rf3 {[%emt 0:01:19]} Rf8 {[%emt 0:02:09]} 35. Rxf8+ {[%emt 0:00:26]} Nxf8 {[%emt 0:00:05]} 36. Qf3 {[%emt 0:00:38]} Ng6 {[%emt 0:00:00]} 37. Ne2 {[%emt 0:01:08]} Nxh4 {[%emt 0:00:53]} 38. Qf4 {[%emt 0:01:21]} Qxg5+ {[%emt 0:00:35]} 39. Qxg5 {[%emt 0:00:02]} Nf3+ {[%emt 0:00:03]} 40. Kf2 {[%emt 0:00:00]} Nxg5 {[%emt 0:00:06]} 41. Ke3 {[%emt 0:00:10]} Ne6 {[%emt 0:02:22]} 42. Ng3 {[%emt 0:05:19]} Kf7 {[%emt 0:12:16]} 43. Nf5 {[%emt 0:00:39]} Kf6 {[%emt 0:00:28]} 44. Nd6 {[%emt 0:00:30]} Nd8 {[%emt 0:00:03]} 45. Kf4 {[%emt 0:00:38]} Ne6+ {[%emt 0:00:10]} 46. Ke3 {[%emt 0:00:09]} Nd8 {[%emt 0:00:02]} 47. Kf4 {[%emt 0:00:19]} Ne6+ {[%emt 0:00:06]} 48. Ke3 {[%emt 0:00:24]} 1/2-1/2

[Event "EIWCC 2018"]
[Site "Vysoke Tatry"]
[Date "2018.04.08"]
[Round "1"]
[White "Huda, Maryana"]
[Black "Kovanova, Baira"]
[Result "1/2-1/2"]
[ECO "A05"]
[WhiteElo "2161"]
[BlackElo "2368"]
[Annotator "NA RC"]
[PlyCount "68"]
[EventDate "2018.??.??"]
[EventType "swiss"]
[EventCountry "SVK"]
[SourceTitle "playchess.com"]
[Source "ChessBase"]
[SourceQuality "1"]
[TimeControl "40/5400+30:1800+30"]

1. Nf3 {[%emt 0:00:00]} Nf6 {[%emt 0:00:11]} 2. g3 {[%emt 0:00:00]} e6 {[%emt 0:03:04]} 3. Bg2 {[%emt 0:00:03]} d5 {[%emt 0:00:18]} 4. d4 {[%emt 0:01:41]} Be7 {[%emt 0:02:02]} 5. c4 {[%emt 0:00:58]} O-O {[%emt 0:00:46]} 6. O-O {[%emt 0:00:34]} c6 {[%emt 0:01:07]} 7. b3 {[%emt 0:06:42]} b6 {[%emt 0:03:43]} 8. Ne5 {[%emt 0:04:28]} Bb7 {[%emt 0:04:22]} 9. Bb2 {[%emt 0:01:58]} Nbd7 {[%emt 0:00:58]} 10. Nd2 {[%emt 0:09:42]} Rc8 {[%emt 0:05:35]} 11. e4 {[%emt 0:07:06]} dxc4 {[%emt 0:03:44]} 12. Ndxc4 {[%emt 0:11:44]} b5 {[%emt 0:11:51]} 13. Nxd7 {[%emt 0:01:06]} Qxd7 {[%emt 0:03:02]} 14. Ne5 {[%emt 0:01:07]} Qd8 {[%emt 0:00:54]} 15. Qe2 {[%emt 0:04:24]} Qb6 {[%emt 0:02:00]} 16. Rfd1 {[%emt 0:02:13]} c5 {[%emt 0:05:59]} 17. Ng4 {[%emt 0:13:31]} (17. d5 $16) 17... c4 $14 {[%emt 0:04:04]} 18. Rac1 {[%emt 0:01:46]} Rfd8 {[%emt 0:10:10]} 19. d5 {[%emt 0:06:32]} exd5 {[%emt 0:10:34]} 20. Nxf6+ {[%emt 0:04:49]} Bxf6 {[%emt 0:02:06]} 21. Bxf6 {[%emt 0:00:07]} Qxf6 {[%emt 0:00:04]} 22. exd5 {[%emt 0:00:10]} Ba6 {[%emt 0:08:42]} 23. bxc4 {[%emt 0:00:18]} bxc4 {[%emt 0:00:20]} 24. Qe3 {[%emt 0:00:44]} c3 {[%emt 0:03:36]} 25. Qxa7 {[%emt 0:02:15]} c2 {[%emt 0:01:03]} 26. Re1 {[%emt 0:02:31]} Re8 {[%emt 0:00:44]} 27. Rxe8+ {[%emt 0:05:40]} Rxe8 {[%emt 0:00:03]} 28. Bf1 {[%emt 0:00:54]} Bxf1 {[%emt 0:02:09]} 29. Qa4 {[%emt 0:03:23]} Qe5 {[%emt 0:05:58]} 30. Kxf1 {[%emt 0:01:28]} h5 {[%emt 0:03:24]} 31. Qxc2 {[%emt 0:06:06]} Qxd5 {[%emt 0:00:12]} 32. Qc6 {[%emt 0:00:58]} Qd3+ {[%emt 0:01:24]} 33. Kg2 {[%emt 0:00:05]} Re2 {[%emt 0:00:45]} 34. Qf3 {[%emt 0:01:11]} Qxf3+ {[%emt 0:00:18]} 1/2-1/2